lending/lending_fUSD_20260124
["ID","MTS","AMOUNT","RATE_DAILY","PERIOD"]
[403228459,1769274645284,-2000.0,0.00017516,2]
[403228461,1769274645293,-1946.80273923,0.00017516,2]
[403228463,1769274645302,-1497.73333874,0.00017516,2]
[403228465,1769274645311,-2000.0,0.00017516,2]
[403228467,1769274645321,-2000.0,0.00017516,2]
[403228469,1769274645330,-2000.0,0.00017516,2]
[403228471,1769274645340,-2000.0,0.00017516,2]
[403228473,1769274645349,-2000.0,0.00017516,2]
[403228475,1769274645358,-2000.0,0.00017516,2]
[403228477,1769274645367,-2368.5,0.00017518,2]
[403228479,1769274645376,-1262.73019669,0.00017534,2]
[403228481,1769274645386,-1000.0,0.00017534,2]
[403228483,1769274645396,-5888.0,0.00017542,2]
[403228485,1769274645405,-2675.0,0.00017551,2]
[403228487,1769274645414,-400.0,0.00017566,2]
[403228489,1769274645425,-469.17519756,0.00017566,2]
[403228490,1769274645434,-556.44463832,0.00017605,2]
[403228492,1769274645444,-1468.46620434,0.00017605,2]
[403228494,1769274645453,-2590.54844732,0.00017605,2]
[403228496,1769274645462,-3875.30554666,0.00017605,2]
[403228498,1769274645471,-5243.4261,0.00017605,2]
[403228500,1769274645480,-2368.5,0.00017638,2]
[403228502,1769274645489,-150.0,0.0001764,2]
[403228504,1769274645498,-5404.10438685,0.0001764,2]
[403228506,1769274645507,-4633.783,0.00017643,2]
[403228508,1769274645516,-334.105,0.00017643,2]
[403228510,1769274645526,-6453.0,0.00017656,2]
[403228512,1769274645535,-836.0,0.0001768,2]
[403228514,1769274645545,-3396.08042674,0.000177,2]
[403228516,1769274645554,-2000.0,0.000177,2]
[403228518,1769274645564,-1000.0,0.00017709,2]
[403228520,1769274645573,-929.63069455,0.0001773,2]
[403228522,1769274645583,-3039.0,0.00017748,2]
[403228524,1769274645592,-200.0,0.00017755,2]
[403228526,1769274645602,-2368.5,0.00017759,2]
[403228530,1769274645611,-1062.33638913,0.00017774,2]
[403228532,1769274645620,-217.15233878,0.00017774,2]
[403228534,1769274645629,-175.49,0.00017776,2]
[403228536,1769274645638,-1000.0,0.0001778,2]
[403228538,1769274645647,-43947.56453849,0.00017787,2]
[403228540,1769274645660,-172.8753019,0.00017788,3]
[403228542,1769274645669,-668.3216899,0.00017796,2]
[403228544,1769274645679,-1000.0,0.00017808,2]
[403228546,1769274645688,-964.19225,0.0001782,2]
[403228548,1769274645698,-964.19226,0.0001782,2]
[403228550,1769274645707,-231.38369303,0.0001782,2]
[403228552,1769274645716,-2675.0,0.00017821,2]
[403228554,1769274645725,-1000.0,0.00017822,2]
[403228556,1769274645734,-5800.0,0.00017823,2]
[403228558,1769274645744,-152.0,0.00017826,13]
[403228560,1769274645754,-500.0,0.00017829,2]
[403228562,1769274645763,-719.15,0.00017829,2]
[403228564,1769274645772,-96953.83922531,0.0001783,2]
[403228566,1769274645782,-250.0,0.0001783,2]
[403228568,1769274645791,-5800.0,0.00017832,2]
[403228570,1769274645801,-345.43605478,0.00017838,2]
[403228572,1769274645811,-790.60119074,0.00017839,2]
[403228575,1769274645821,-5800.0,0.00017841,2]
[403228577,1769274645830,-5888.0,0.00017844,2]
[403228579,1769274645840,-25000.0,0.00017847,3]
[403228581,1769274645853,-5800.0,0.00017849,2]
[403228583,1769274645863,-200.0,0.00017855,2]
[403228585,1769274645872,-25000.0,0.00017856,3]
[403228587,1769274645882,-200.0,0.00017856,2]
[403228589,1769274645892,-5800.0,0.00017858,2]
[403228591,1769274645902,-25000.0,0.00017865,3]
[403228593,1769274645916,-5800.0,0.00017866,2]
[403228596,1769274645926,-25000.0,0.00017874,3]
[403228623,1769274646239,-5800.0,0.00017874,2]
[403228624,1769274646248,-2368.5,0.00017879,2]
[403228625,1769274646257,-25000.0,0.00017882,3]
[403228626,1769274646267,-5800.0,0.00017883,2]
[403228627,1769274646276,-25000.0,0.00017891,3]
[403228628,1769274646286,-5800.0,0.00017891,2]
[403228629,1769274646295,-151.0,0.00017897,2]
[403228632,1769274646305,-1102.07325121,0.00017899,5]
[403228634,1769274646314,-500.0,0.00017899,2]
[403228635,1769274646323,-163.28739683,0.000179,2]
[403228636,1769274646333,-355.08698959,0.000179,2]
[403228637,1769274646342,-10000.0,0.000179,2]
[403228639,1769274646355,-151.3661,0.000179,2]
[403228641,1769274646364,-25000.0,0.000179,3]
[403228643,1769274646374,-255.08672729,0.000179,2]
[403228645,1769274646384,-410.36907363,0.000179,2]
[403228647,1769274646393,-275.16490942,0.000179,2]
[403228649,1769274646402,-150.50962127,0.000179,2]
[403228651,1769274646411,-5800.0,0.000179,2]
[403228653,1769274646420,-7609.85651561,0.000179,3]
[403228655,1769274646430,-3156.11448161,0.000179,2]
[403228657,1769274646439,-158.70886363,0.000179,2]
[403228659,1769274646448,-190.80620809,0.000179,3]
[403228661,1769274646457,-13995.31137832,0.000179,2]
[403228663,1769274646467,-19234.54531266,0.000179,2]
[403228665,1769274646476,-549.64135156,0.000179,2]
[403228667,1769274646485,-21985.30537338,0.000179,2]
[403228669,1769274646494,-5888.0,0.00017918,2]
[403228671,1769274646503,-3039.0,0.00017945,2]
[403228673,1769274646513,-331.6783101,0.00017967,2]
[403228675,1769274646523,-500.0,0.0001797,2]
[403228677,1769274646533,-1000.0,0.0001797,2]
[403228679,1769274646545,-500.0,0.0001797,2]
[403228681,1769274646554,-1000.0,0.0001797,2]
[403228683,1769274646563,-500.0,0.0001797,2]
[403228685,1769274646572,-1000.0,0.0001797,2]
[403228687,1769274646582,-500.0,0.0001797,2]
[403228689,1769274646591,-1000.0,0.0001797,2]
[403228691,1769274646600,-500.0,0.0001797,2]
[403228693,1769274646610,-1000.0,0.0001797,2]
[403228695,1769274646619,-500.0,0.0001797,2]
[403228697,1769274646628,-1000.0,0.0001797,2]
[403228699,1769274646638,-601.31337833,0.0001797,2]
[403228701,1769274646648,-1425.13914229,0.0001797,2]
[403228703,1769274646658,-15055.0,0.00017973,2]
[403228705,1769274646667,-500.0,0.00017973,2]
[403228707,1769274646677,-150.0,0.00017973,2]
[403228709,1769274646687,-162.86883444,0.00017973,2]
[403228711,1769274646696,-500.0,0.00017973,2]
[403228713,1769274646706,-163.10376799,0.00017973,2]
[403228715,1769274646716,-500.0,0.00017973,2]
[403228717,1769274646725,-500.0,0.00017973,2]
[403228719,1769274646734,-500.0,0.00017973,2]
[403228721,1769274646744,-500.0,0.00017973,2]
[403228723,1769274646753,-500.0,0.00017973,2]
[403228725,1769274646762,-500.0,0.00017973,2]
[403228727,1769274646771,-500.0,0.00017973,2]
[403228729,1769274646780,-500.0,0.00017973,2]
[403228731,1769274646790,-500.0,0.00017973,2]
[403228733,1769274646799,-336.33747242,0.00017973,2]
[403228735,1769274646810,-163.215227,0.00017973,2]
[403228737,1769274646819,-500.0,0.00017973,2]
[403228739,1769274646828,-208.11665623,0.00017973,2]
[403228741,1769274646838,-161.29695591,0.00017973,2]
[403228743,1769274646847,-500.0,0.00017973,2]
[403228745,1769274646856,-500.0,0.00017973,2]
[403228747,1769274646865,-500.0,0.00017973,2]
[403228749,1769274646876,-500.0,0.00017973,2]
[403228751,1769274646885,-500.0,0.00017973,2]
[403228753,1769274646894,-500.0,0.00017973,2]
[403228755,1769274646904,-500.0,0.00017973,2]
[403228757,1769274646915,-500.0,0.00017973,2]
[403228760,1769274646936,-500.0,0.00017973,2]
[403228762,1769274646949,-500.0,0.00017973,2]
[403228765,1769274646959,-500.0,0.00017973,2]
[403228767,1769274646970,-500.0,0.00017973,2]
[403228769,1769274646980,-558.82608128,0.00017973,2]
[403228771,1769274646990,-500.0,0.00017973,2]
[403228773,1769274647001,-500.0,0.00017973,2]
[403228775,1769274647015,-521.52144255,0.00017973,2]
[403228777,1769274647025,-335.93123339,0.00017973,2]
[403228779,1769274647035,-500.0,0.00017973,2]
[403228781,1769274647045,-160.04899722,0.00017973,2]
[403228783,1769274647055,-500.0,0.00017973,2]
[403228785,1769274647066,-500.0,0.00017973,2]
[403228787,1769274647076,-500.0,0.00017973,2]
[403228789,1769274647086,-159.93585942,0.00017973,2]
[403228791,1769274647096,-160.0507877,0.00017973,2]
[403228793,1769274647105,-160.03828545,0.00017973,2]
[403228795,1769274647115,-160.03318119,0.00017973,2]
[403228797,1769274647124,-160.05036115,0.00017973,2]
[403228799,1769274647134,-160.04994992,0.00017973,2]
[403228801,1769274647143,-500.0,0.00017973,2]
[403228803,1769274647153,-500.0,0.00017973,2]
[403228805,1769274647163,-160.05079201,0.00017973,2]
[403228808,1769274647172,-512.1744801,0.00017973,2]
[403228810,1769274647182,-180.05440168,0.00017973,2]
[403228812,1769274647191,-157.31967869,0.00017973,2]
[403228814,1769274647201,-573.18204786,0.00017973,2]
[403228816,1769274647211,-500.0,0.00017973,2]
[403228818,1769274647222,-500.0,0.00017973,2]
[403228820,1769274647231,-500.0,0.00017973,2]
[403228822,1769274647241,-500.0,0.00017973,2]
[403228824,1769274647251,-500.0,0.00017973,2]
[403228826,1769274647261,-160.95253726,0.00017973,2]
[403228828,1769274647270,-333.14308792,0.00017973,2]
[403228830,1769274647281,-500.0,0.00017973,2]
[403228832,1769274647290,-161.7441045,0.00017973,2]
[403228834,1769274647300,-161.20666181,0.00017973,2]
[403228836,1769274647313,-500.0,0.00017973,2]
[403228839,1769274647325,-169.51216753,0.00017973,2]
[403228841,1769274647335,-500.0,0.00017973,2]
[403228843,1769274647345,-500.0,0.00017973,2]
[403228844,1769274647354,-500.0,0.00017973,2]
[403228847,1769274647364,-300.0,0.00017973,2]
[403228849,1769274647374,-500.0,0.00017973,2]
[403228851,1769274647383,-150.87644931,0.00017973,2]
[403228853,1769274647393,-500.0,0.00017973,2]
[403228855,1769274647403,-500.0,0.00017973,2]
[403228857,1769274647412,-500.0,0.00017973,2]
[403228859,1769274647422,-500.0,0.00017973,2]
[403228861,1769274647432,-160.30101054,0.00017973,2]
[403228863,1769274647442,-160.05242782,0.00017973,2]
[403228865,1769274647451,-158.06916035,0.00017973,2]
[403228867,1769274647461,-160.05160425,0.00017973,2]
[403228869,1769274647471,-500.0,0.00017973,2]
[403228871,1769274647480,-166.43972344,0.00017973,2]
[403228873,1769274647490,-511.74783648,0.00017973,2]
[403228875,1769274647501,-161.91357387,0.00017973,2]
[403228877,1769274647510,-160.04998238,0.00017973,2]
[403228879,1769274647520,-500.0,0.00017973,2]
[403228881,1769274647529,-500.0,0.00017973,2]
[403228883,1769274647539,-500.0,0.00017973,2]
[403228885,1769274647548,-500.0,0.00017973,2]
[403228887,1769274647559,-500.0,0.00017973,2]
[403228889,1769274647568,-161.03754612,0.00017973,2]
[403228891,1769274647578,-500.0,0.00017973,2]
[403228893,1769274647587,-500.0,0.00017973,2]
[403228895,1769274647597,-548.15607658,0.00017973,2]
[403228897,1769274647606,-500.0,0.00017973,2]
[403228898,1769274647616,-500.0,0.00017973,2]
[403228900,1769274647625,-500.0,0.00017973,2]
[403228902,1769274647635,-208.57012707,0.00017973,2]
[403228904,1769274647645,-161.24700646,0.00017973,2]
[403228906,1769274647655,-500.0,0.00017973,2]
[403228908,1769274647664,-508.83270828,0.00017973,2]
[403228910,1769274647674,-500.0,0.00017973,2]
[403228912,1769274647684,-165.72236604,0.00017973,2]
[403228914,1769274647693,-308.89625283,0.00017973,2]
[403228916,1769274647703,-162.47485834,0.00017973,2]
[403228918,1769274647712,-284.08136107,0.00017973,2]
[403228920,1769274647722,-500.0,0.00017973,2]
[403228922,1769274647732,-164.56853003,0.00017973,2]
[403228924,1769274647742,-500.0,0.00017973,2]
[403228926,1769274647753,-167.78129088,0.00017973,2]
[403228928,1769274647762,-485.5720463,0.00017973,2]
[403228930,1769274647772,-500.0,0.00017973,2]
[403228931,1769274647781,-500.0,0.00017973,2]
[403228933,1769274647791,-150.0,0.00017973,2]
[403228935,1769274647801,-500.0,0.00017982,2]
[403228937,1769274647811,-410.92119628,0.00017988,2]
[403228940,1769274647821,-719.15,0.00017989,2]
[403228941,1769274647830,-790.60119074,0.0001799,2]
[403228943,1769274647840,-790.60119074,0.0001799,2]
[403228945,1769274647850,-152.734551,0.00017995,2]
[403228948,1769274647859,-719.15,0.00017997,2]
[403228950,1769274647869,-719.15,0.00017997,2]
[403228951,1769274647879,-150.0,0.00017997,2]
[403228953,1769274647888,-151.0,0.00017997,2]
[403228956,1769274647899,-58723.18736714,0.00017998,2]
[403228957,1769274647908,-3039.0,0.00017998,2]
[403228960,1769274647918,-150.0,0.00017999,2]
[403228961,1769274647931,-150.0,0.00017999,2]
[403228964,1769274647942,-156.86309582,0.00017999,2]
[403228965,1769274647952,-300.0,0.00017999,2]
[403228967,1769274647963,-300.0,0.00017999,2]
[403228970,1769274647974,-300.0,0.00017999,2]
[403228972,1769274647984,-161.58,0.00017999,7]
[403228973,1769274647993,-300.0,0.00017999,2]
[403228976,1769274648004,-13686.32468472,0.00017999,2]
[403228978,1769274648014,-300.0,0.00017999,2]
[403228979,1769274648024,-300.0,0.00017999,2]
[403228981,1769274648035,-500.0,0.00017999,2]
[403228984,1769274648044,-174.88782971,0.00017999,2]
[403228985,1769274648054,-300.0,0.00017999,2]
[403228987,1769274648063,-719.15,0.00017999,2]
[403228989,1769274648073,-719.15,0.00017999,2]
[403228991,1769274648083,-719.15,0.00017999,2]
[403228993,1769274648093,-719.15,0.00017999,2]
[403228995,1769274648103,-719.15,0.00017999,2]
[403228997,1769274648113,-719.15,0.00017999,2]
[403228999,1769274648122,-719.15,0.00017999,2]
[403229001,1769274648131,-719.15,0.00017999,2]
[403229003,1769274648140,-719.15,0.00017999,2]
[403229005,1769274648150,-719.15,0.00017999,2]
[403229006,1769274648160,-719.15,0.00017999,2]
[403229008,1769274648170,-719.15,0.00017999,2]
[403229010,1769274648179,-719.15,0.00017999,2]
[403229012,1769274648189,-719.15,0.00017999,2]
[403229014,1769274648199,-719.15,0.00017999,2]
[403229016,1769274648208,-719.2552437,0.00017999,2]
[403229018,1769274648218,-300.0,0.00017999,2]
[403229020,1769274648227,-150.0,0.00017999,2]
[403229022,1769274648238,-123316.84008308,0.00018,2]
[403229024,1769274648248,-800.37170123,0.00018,2]
[403229026,1769274648258,-2014.56,0.00018,2]
[403229028,1769274648267,-5364182.04878554,0.00018,2]
[403229032,1769274648295,-943.49055009,0.00018,2]
[403229257,1769274650581,-1.7e-07,0.00018,2]
[403229512,1769274653294,-1184.97259483,0.00018,2]
[403229514,1769274653310,-3847.31007714,0.00018,2]
[403229517,1769274653324,-551.16170028,0.00018,2]
[403229526,1769274653409,-8449.22136686,0.00018,2]
[403229635,1769274654463,-326.0,0.00018,2]
[403229637,1769274654475,-3137.0697141,0.00018,2]
[403229790,1769274667876,229.393993,7.945e-05,2]
[403229791,1769274697144,-466.91936573,0.00010735,2]
[403229794,1769274709487,1102.07325121,0.00010953,3]
[403229798,1769274737473,-4128.61863427,0.00010735,2]
[403229799,1769274737502,-334.509,0.00010735,2]
[403229800,1769274737531,-250.25897511,0.000109,2]
[403229801,1769274737559,-273.23678124,0.00010953,2]
[403229802,1769274737671,-26.76321876,0.00010953,2]
[403229803,1769274740449,-150.0,0.00010953,2]
[403229804,1769274740480,-300.0,0.00010953,2]
[403229805,1769274740528,-9100.01,0.00010954,2]
[403229806,1769274755731,-10000.01,0.00010954,2]
[403229807,1769274755879,-10000.01,0.00010954,2]
[403229808,1769274756018,-10000.01,0.00010954,2]
[403229812,1769274795622,-241.36308961,0.00010953,2]
[403229816,1769274810923,-177.12021746,0.00010953,2]
[403229817,1769274812722,-258.68636491,0.000109,2]
[403229818,1769274818174,-126.90756,0.000109,2]
[403229819,1769274818201,-58.13269969,0.00010953,2]
[403229820,1769274821028,-23.38399324,0.00010953,2]
[403229821,1769274821051,-186.11064016,0.00010953,2]
[403229822,1769274822567,-242.71801423,0.00010953,2]
[403229823,1769274825111,-71.17134561,0.00010953,2]
[403229824,1769274825135,-234.03147095,0.00010953,2]
[403229825,1769274829511,-65.96852905,0.00010953,2]
[403229826,1769274829532,-138.38939598,0.00010953,2]
[403229827,1769274831893,-206.04530438,0.00010953,2]
[403229828,1769274833520,-162.31083469,0.00010953,2]
[403229829,1769274835667,-174.29985516,0.00010953,2]
[403229830,1769274837816,-184.95460979,0.00010953,2]
[403229831,1769274837842,-0.41632446,0.00010954,2]
[403229832,1769274840548,-260.85016,0.00010954,2]
[403229833,1769274842517,-152.90282489,0.00010953,2]
[403229834,1769274844906,-147.09717511,0.00010953,2]
[403229835,1769274844934,-119.85091571,0.00010954,2]
[403229837,1769274846844,-227.78422536,0.00010954,2]
[403229838,1769274849509,-450.0,0.00010954,2]
[403229839,1769274850883,-297.23533721,0.00010954,2]
[403229840,1769274853021,-156.41500086,0.00010954,2]
[403229841,1769274854630,-215.67345871,0.00010954,2]
[403229842,1769274857977,-252.143357,0.00010954,2]
[403229843,1769274859371,-274.61431748,0.00010954,2]
[403229844,1769274861578,-190.80711694,0.00010954,2]
[403229845,1769274864394,-165.51566,0.00010954,2]
[403229846,1769274866925,-331.82655358,0.00010954,2]
[403229847,1769274868564,468.83372718,0.000226,120]
[403229848,1769274868598,-309.71222381,0.00010954,2]
[403229849,1769274869829,-247.856643,0.00010954,2]
[403229851,1769274873286,-378.00494286,0.00010954,2]
[403229852,1769274875185,-189.53517489,0.00010954,2]
[403229853,1769274877618,-189.36428936,0.00010954,2]
[403229856,1769274879051,-175.25151122,0.00010954,2]
[403229859,1769274898329,-10000.01,0.00010954,2]
[403229860,1769274898680,-10000.01,0.00010954,2]
[403229861,1769274898823,-10000.01,0.00010954,2]
[403229862,1769274905778,-300.0,0.00010953,2]
[403229863,1769274905809,-1200.0,0.00010953,2]
[403229864,1769274905839,-150.0,0.00010953,2]
[403229865,1769274905869,-216.0,0.00010953,2]
[403229866,1769274906402,-300.0,0.00010954,2]
[403229867,1769274906419,-1200.0,0.00010954,2]
[403229868,1769274906471,-150.0,0.00010954,2]
[403229869,1769274906503,-216.0,0.00010954,2]
[403229870,1769274906520,-6268.01,0.00010954,2]
[403229871,1769274906580,-10000.01,0.00010954,2]
[403229872,1769274906637,-10000.01,0.00010954,2]
[403229883,1769275036068,-227.80415376,0.00010799,2]
[403229890,1769275125823,-155.82606753,0.00010637,2]
[403229891,1769275128921,-211.35592782,0.00010637,2]
[403229892,1769275131036,-163.41134565,0.00010637,2]
[403229893,1769275131057,-87.42094142,0.00010691,2]
[403229894,1769275133389,-115.57905858,0.00010691,2]
[403229895,1769275133414,-63.4824318,0.00010854,2]
[403229898,1769275215996,-217.69248067,0.00010854,2]
[403229901,1769275218002,-251.01652615,0.00010854,2]
[403229902,1769275246153,-165.51566,0.00010854,2]
[403229903,1769275247904,-225.66994004,0.00010854,2]
[403229904,1769275260510,-165.51566,0.00010854,2]
[403229905,1769275263903,-294.0920583,0.00010854,2]
[403229906,1769275265850,-320.1522707,0.00010854,2]
[403229907,1769275267191,-330.48434,0.00010854,2]
[403229908,1769275269526,-37.00383234,0.00010854,2]
[403229909,1769275269551,-239.0,0.00010854,2]
[403229910,1769275269573,-197.65812545,0.00010859,2]
[403229911,1769275274029,-52.34187455,0.00010859,2]
[403229912,1769275274052,-107.12934032,0.000109,2]
[403229913,1769275291595,-63.66751823,0.000109,2]
[403229914,1769275291620,-89.92003785,0.00010946,2]
[403229915,1769275293601,-165.51566,0.00010946,2]
[403229916,1769275295606,-153.61384336,0.00010846,2]
[403229917,1769275295628,-44.56430215,0.00010946,2]
[403229918,1769275295649,-82.00389797,0.00010946,2]
[403229919,1769275297878,-138.99610203,0.00010946,2]
[403229920,1769275297901,-361.00389797,0.00010946,2]
[403229922,1769275299618,-322.08885429,0.00010946,2]
[403229924,1769275300788,-153.61384336,0.00010853,2]
[403229925,1769275300811,-72.02564721,0.00010854,2]
[403229926,1769275308772,-186.5865895,0.00010854,2]
[403229927,1769275310733,-224.63899196,0.00010854,2]
[403229928,1769275311985,-255.88840929,0.00010854,2]
[403229929,1769275312124,-4191.40526204,0.00010854,2]
[403229930,1769275312326,-1906.12,0.00010854,2]
[403229931,1769275312356,-153.61384336,0.00010859,2]
[403229932,1769275312385,-516.90724774,0.00010946,2]
[403229933,1769275312418,-150.0,0.00010946,2]
[403229934,1769275312448,-300.0,0.00010946,2]
[403229935,1769275312477,-178.76,0.00010947,2]
[403229936,1769275312507,-200.0,0.00010947,2]
[403229937,1769275312538,-500.0,0.00010947,2]
[403229938,1769275312571,-500.0,0.00010947,2]
[403229939,1769275312601,-200.0,0.00010947,2]
[403229940,1769275312631,-289.2078178,0.00010947,2]
[403229941,1769275313876,-210.7921822,0.00010947,2]
[403229942,1769275313899,-29.62301102,0.00010947,2]
[403229943,1769275314869,-121.37698898,0.00010947,2]
[403229944,1769275314897,-500.0,0.00010947,2]
[403229945,1769275314925,-151.0,0.00010947,2]
[403229946,1769275314953,-500.0,0.00010947,2]
[403229947,1769275314980,-500.0,0.00010947,2]
[403229948,1769275315008,-151.0,0.00010947,2]
[403229949,1769275315035,-500.0,0.00010947,2]
[403229950,1769275315063,-500.0,0.00010947,2]
[403229951,1769275315091,-151.0,0.00010947,2]
[403229952,1769275315118,-500.0,0.00010947,2]
[403229953,1769275315147,-151.0,0.00010947,2]
[403229954,1769275315179,-500.0,0.00010947,2]
[403229955,1769275315209,-500.0,0.00010947,2]
[403229956,1769275315239,-151.0,0.00010947,2]
[403229957,1769275315608,-247.25602204,0.00010947,2]
[403229958,1769275316409,-177.57814651,0.00010947,2]
[403229959,1769275318019,-75.16583145,0.00010947,2]
[403229960,1769275318047,-500.0,0.00010947,2]
[403229961,1769275318076,-151.0,0.00010947,2]
[403229962,1769275318106,-500.0,0.00010947,2]
[403229963,1769275318135,-500.0,0.00010947,2]
[403229964,1769275318166,-151.0,0.00010947,2]
[403229965,1769275318197,-500.0,0.00010947,2]
[403229966,1769275318227,-151.0,0.00010947,2]
[403229967,1769275318256,-500.0,0.00010947,2]
[403229968,1769275318284,-500.0,0.00010947,2]
[403229969,1769275318312,-151.0,0.00010947,2]
[403229970,1769275318340,-500.0,0.00010947,2]
[403229971,1769275318371,-151.0,0.00010947,2]
[403229972,1769275318399,-500.0,0.00010947,2]
[403229973,1769275319351,-339.6783371,0.00010947,2]
[403229974,1769275319768,-160.3216629,0.00010947,2]
[403229975,1769275319789,-151.0,0.00010947,2]
[403229976,1769275319810,-95.43284494,0.00010947,2]
[403229977,1769275320948,-361.57715506,0.00010947,2]
[403229978,1769275320975,-151.0,0.00010947,2]
[403229979,1769275321002,-151.0,0.00010947,2]
[403229980,1769275321030,-200.0,0.00010947,2]
[403229981,1769275321057,-151.0,0.00010947,2]
[403229982,1769275321084,-151.0,0.00010947,2]
[403229983,1769275321111,-155.87085309,0.00010947,2]
[403229984,1769275321139,-151.0,0.00010947,2]
[403229985,1769275321169,-151.0,0.00010947,2]
[403229986,1769275321198,-151.0,0.00010947,2]
[403229987,1769275321228,-151.0,0.00010947,2]
[403229988,1769275321257,-151.0,0.00010947,2]
[403229989,1769275321285,-151.0,0.00010947,2]
[403229990,1769275321312,-151.0,0.00010947,2]
[403229991,1769275321341,-151.0,0.00010947,2]
[403229992,1769275321369,-151.0,0.00010947,2]
[403229993,1769275321397,-151.0,0.00010947,2]
[403229994,1769275321426,-151.0,0.00010947,2]
[403229995,1769275321456,-151.0,0.00010947,2]
[403229996,1769275321484,-151.0,0.00010947,2]
[403229997,1769275321512,-151.0,0.00010947,2]
[403229998,1769275321541,-151.0,0.00010947,2]
[403229999,1769275321567,-500.0,0.00010947,2]
[403230000,1769275321594,-306.72319279,0.00010947,2]
[403230001,1769275321622,-500.0,0.00010953,2]
[403230002,1769275322010,-213.66759812,0.00010953,2]
[403230003,1769275322036,-286.33240188,0.00010953,2]
[403230004,1769275322058,-11.00591526,0.00010953,2]
[403230005,1769275351822,-200.0,0.00010947,2]
[403230006,1769275351844,-151.0,0.00010947,2]
[403230007,1769275351866,-59.43469677,0.00010947,2]
[403230008,1769275354288,-91.56530323,0.00010947,2]
[403230009,1769275354311,-131.28205513,0.00010947,2]
[403230010,1769275357314,-19.71794487,0.00010947,2]
[403230011,1769275357335,-151.0,0.00010947,2]
[403230012,1769275357357,-50.00945556,0.00010947,2]
[403230013,1769275359435,-100.99054444,0.00010947,2]
[403230014,1769275359456,-151.0,0.00010947,2]
[403230015,1769275359479,-151.0,0.00010947,2]
[403230016,1769275359502,-24.17817803,0.00010947,2]
[403230017,1769275362021,-126.82182197,0.00010947,2]
[403230018,1769275362043,-62.56566231,0.00010947,2]
[403230019,1769275380463,-180.14659574,0.00010947,2]
[403230022,1769275410760,-18.59183395,0.00010947,2]
[403230023,1769275410782,-151.29273343,0.00010947,2]
[403230024,1769275426452,-162.54389024,0.00010947,2]
[403230025,1769275429554,-185.90449884,0.00010947,2]
[403230026,1769275430654,-0.25887749,0.00010947,2]
[403230027,1769275430675,-200.0,0.00010947,2]
[403230028,1769275430696,-190.59259671,0.00010947,2]
[403230029,1769275433161,-9.40740329,0.00010947,2]
[403230030,1769275433186,-250.0,0.0001095,2]
[403230031,1769275433217,-126.42432675,0.00010952,2]
[403230032,1769275436885,-173.57567325,0.00010952,2]
[403230033,1769275436907,-183.1121574,0.00010953,2]
[403230034,1769275438997,-202.72394855,0.00010953,2]
[403230035,1769275441985,-103.15797879,0.00010953,2]
[403230036,1769275442012,-196.84202121,0.00010953,2]
[403230039,1769275536134,5272.46458787,0.0001,2]
[403230042,1769275560480,4528.31021141,8e-05,2]
[403230043,1769275560934,500.0,0.000226,120]
[403230044,1769275568661,500.0,0.000226,120]
[403230045,1769275577293,502.0,0.000226,120]
[403230046,1769275600083,-312.76410114,0.00010945,2]
[403230047,1769275629347,205.0,9.8e-05,2]
[403230050,1769275665939,-887.23589886,0.00010945,2]
[403230051,1769275665968,-193.84844231,0.00010953,2]
[403230052,1769275665995,-587.27553743,0.00010953,2]
[403230053,1769275666030,-500.0,0.00010953,2]